Cogmind - Beta 15 @@@ ROGUE MODE // 2025.07.10 @ 20:15:14 Player: Rockstar Result: Destroyed by G-50 Soldier with Heavy Laser Performance ------------- Evolutions (2) 1000 Regions Visited (4) 800 Robots Destroyed (4) 20 Value Destroyed (111) 111 Prototype IDs (0) 0 Alien Tech Used (0) 0 Bonus (0) 0 TOTAL SCORE: 1931 Bonus ------- None Cogmind --------- Core Integrity 0/550 Matter 295/300 Energy 98/100 System Corruption 0% Temperature Cool (9) Movement Core (50) Location -8/Storage Parts ------- > --- POWER (2) -------- (None) > --- PROPULSION (4) --- (None) > --- UTILITY (3) ------ (None) > --- WEAPON (2) ------- (None) > --- INVENTORY (5) ---- Small Storage Unit Drone Bay (2/2) Subdweller Laser Light Assault Rifle Battle Cannon Peak State ------------ > --- POWER ------------ Light Ion Engine > --- PROPULSION ------- Flight Unit Flight Unit > --- UTILITY ---------- Subdweller Optics > --- WEAPON ----------- Light Assault Rifle Light Assault Rifle > --- INVENTORY -------- Flight Unit Small Storage Unit Medium Laser Slug Cannon [Rating: 7] Favorites ----------- Power Light Ion Engine Engine Light Ion Engine Propulsion Flight Unit Wheel Compact Wheel Flight Unit Flight Unit Utility Subdweller Optics Device Subdweller Optics Storage Small Storage Unit Weapon Light Assault Rifle Energy Gun Medium Laser Ballistic Gun Light Assault Rifle Build | -11 -10 -10 -8 -8 ------- Run | Yrd Mat Sub Mat Sto Slots Evolved 4 | . . . 4 . Power 1 | . . . 1 . Propulsion 2 | . . . 2 . Utility 1 | . . . 1 . Weapon . | . . . . . Parts Attached 18 | 6 6 5 1 . Power 4 | 1 1 1 1 . Engine 4 | 1 1 1 1 . Core . | . . . . . Reactor . | . . . . . Propulsion 5 | 2 2 1 . . Treads . | . . . . . Leg . | . . . . . Wheel 2 | 2 . . . . Hover . | . . . . . Flight 3 | . 2 1 . . Utility 3 | 1 1 1 . . Device 2 | . 1 1 . . Storage 1 | 1 . . . . Processor . | . . . . . Hackware . | . . . . . Protection . | . . . . . Artifact . | . . . . . Weapon 6 | 2 2 2 . . Energy Gun 3 | 1 . 2 . . Energy Cannon . | . . . . . Ballistic Gun 3 | 1 2 . . . Ballistic Cannon . | . . . . . Launcher . | . . . . . Special Weapon . | . . . . . Impact Weapon . | . . . . . Slashing Weapon . | . . . . . Piercing Weapon . | . . . . . Special Melee Weapon . | . . . . . Unidentified Prototypes . | . . . . . Parts Lost 7 | . . 4 . 3 Power 2 | . . 2 . . Propulsion 3 | . . 1 . 2 Utility 1 | . . 1 . . Weapon 1 | . . . . 1 Highest Loss Streak 3 | . . 2 . 3 To Critical Strikes . | . . . . . Average Backups 4 | . 3 4 4 4 Power . | . 1 . . . Propulsion . | . . . . . Utility . | . . 1 1 1 Weapon 2 | . 1 2 3 3 Tool/Special . | . . . . . Unused Backups 4 | . . 2 . 2 Power . | . . . . . Propulsion . | . . . . . Utility 1 | . . . . 1 Weapon 3 | . . 2 . 1 Tool/Special . | . . . . . Average Slot Usage (%) 67 | . 81 76 27 19 Engine 11 | . 14 13 . 4 Wheel 2 | . 12 . . . Flight 22 | . 15 28 18 9 Device 4 | . 2 6 . . Storage 1 | . 7 . . . Energy Gun 5 | . 7 4 9 6 Ballistic Gun 18 | . 20 23 . . Peak Build Rating 7 | 6 6 7 5 6 Average Rating 5 | 4 5 6 4 3 On Entrance 4 | . 6 6 6 5 Naked Turns 36 | . . . . 36 Heaviest Build 13 | 13 13 8 7 7 Greatest Support 26 | 26 26 8 8 8 Greatest Overweight (x) . | . . . . . Average Overweight (x) . | . . . . . Largest Inventory Capacity 8 | 8 8 5 5 5 Average Capacity 5 | 7 6 5 5 5 Most Carried 6 | 2 6 5 5 5 Average Carried 4 | 1 3 4 4 4 Final Capacity 8 | 8 5 5 5 5 Final Carried 5 | 2 5 5 4 5 Class Distribution -------------------- 56% | Mutant 43% | Scavenger-Mutant Dominant Class ---------------- Mutant | -10/Materials Scavenger-Mutant | -10/Subcaves Scavenger-Mutant | -8/Materials Mutant | -8/Storage Resources | -11 -10 -10 -8 -8 ----------- Run | Yrd Mat Sub Mat Sto Matter Collected 361 | 184 65 112 . . Remotely . | . . . . . Salvage Created 93 | . 33 51 . 9 Parts 8 | . 2 2 . 4 Haulers Intercepted . | . . . . . Recyclers Shooed . | . . . . . Parts Field Recycled . | . . . . . Retrieved Matter . | . . . . . Parts Self-Destructed 6 | . . 6 . . Prevented . | . . . . . Kills | -11 -10 -10 -8 -8 ------- Run | Yrd Mat Sub Mat Sto Combat Hostiles Destroyed 2 | . 1 1 . . Guns 2 | . 1 1 . . Classes Destroyed 4 | . 2 1 . 1 Builder 1 | . . . . 1 Watcher 1 | . 1 . . . Swarmer 1 | . 1 . . . Subdweller 1 | . . 1 . . Best Kill Streak 1 | . 1 1 . 1 Combat Bots Only 1 | . 1 1 . . Max Kills in Single Turn 1 | . 1 1 . 1 Gunslinging . | . . . . . Exploded . | . . . . . Melee . | . . . . . Uniques/NPCs Destroyed . | . . . . . Combat | -11 -10 -10 -8 -8 -------- Run | Yrd Mat Sub Mat Sto Hostile Shots Fired 117 | . 4 33 . 80 Missed 50 | . 1 16 . 33 Hits 67 | . 3 17 . 47 Projectile 67 | . 3 17 . 47 Critical Strikes 3 | . . . . 3 Damage Taken 1094 | . 36 360 . 698 Core 708 | . . 150 . 558 Absorbed by Shields . | . . . . . Core Remaining (%) 70 | 100 . 40 . . Volleys Fired 18 | . 4 14 . . Largest 2 | . 2 2 . . Hottest 80 | . 70 80 . . Shots Fired 29 | . 8 21 . . Gun 29 | . 8 21 . . Cannon . | . . . . . Launcher . | . . . . . Special . | . . . . . Kinetic 16 | . 5 11 . . Thermal 13 | . 3 10 . . Explosive . | . . . . . Electromagnetic . | . . . . . Robot Hit Streak 12 | . 6 12 . . Robot Miss Streak 2 | . 2 . . . Penetration Max . | . . . . . Secondary Targets 2 | . 1 1 . . Max Gunslinging Chain 1 | . 1 1 . . Shots Hit Robots 12 | . 6 6 . . Core Hits 6 | . 3 2 . 1 Critical Kills . | . . . . . Critical Parts Destroyed . | . . . . . Critical Strikes . | . . . . . Melee Attacks . | . . . . . Impact . | . . . . . Slashing . | . . . . . Piercing . | . . . . . Sneak Attacks . | . . . . . Combat Hostiles . | . . . . . Follow-up Attacks . | . . . . . Damage Inflicted 352 | . 55 87 . 210 Guns 142 | . 55 87 . . Cannons . | . . . . . Explosions 204 | . . . . 204 Melee . | . . . . . Ramming 6 | . . . . 6 Kinetic 49 | . 31 18 . . Thermal 93 | . 24 69 . . Explosive 204 | . . . . 204 Electromagnetic . | . . . . . Impact . | . . . . . Slashing . | . . . . . Piercing . | . . . . . Highest Corruption . | . . . . . Average Corruption . | . . . . . Corruption Purged . | . . . . . Corruption Blocked . | . . . . . Overload Shots . | . . . . . Overflow Damage 65 | . . . . 65 Projectiles . | . . . . . Explosions 65 | . . . . 65 Melee . | . . . . . Knockbacks . | . . . . . Impact . | . . . . . Kinetic . | . . . . . Secondary . | . . . . . Self-Inflicted Damage 3 | . . . . 3 Shots . | . . . . . Rammed 3 | . . . . 3 Targets Rammed 3 | . . . . 3 Kicked . | . . . . . Crushed . | . . . . . Highest Temperature 56 | . 56 15 . 14 Average Temperature 20 | . 27 9 . 8 Received Heat Transfer 387 | . 6 48 . 333 Siege Activations . | . . . . . Martial Activations . | . . . . . Shielding Activations . | . . . . . Robots Disrupted . | . . . . . Combat Hostiles . | . . . . . Robots Corrupted . | . . . . . Combat Hostiles . | . . . . . Parts Fried . | . . . . . Impact Corruptions . | . . . . . Robots Melted . | . . . . . Combat Hostiles . | . . . . . Parts Melted 2 | . 1 1 . . Heat Transferred 149 | . 74 75 . . Parts Sabotaged . | . . . . . Parts Stolen . | . . . . . Parts Stripped . | . . . . . Power Chain Reactions . | . . . . . Alert | -11 -10 -10 -8 -8 ------- Run | Yrd Mat Sub Mat Sto Maximum Alert Level . | . . . . . Low Security (%) 100 | 100 100 . 100 100 Level 1 . | . . . . . Level 2 . | . . . . . Level 3 . | . . . . . Level 4 . | . . . . . Level 5 . | . . . . . High Security . | . . . . . Max Security . | . . . . . Peak Influence 197 | . 20 . . 197 Initial . | . . . . . Average 16 | . 4 . . 44 Influence Increases 293 | . 27 30 . 236 Destroy 0b10 Robot/C 20 | . 20 . . . Destroy 0b10 Robot/NC 10 | . 5 . . 5 Destroy Leader 2 | . 2 . . . Successful Hack 17 | . . . . 17 Disable Machine 60 | . . . . 60 Destroy Structure 34 | . . . . 34 Lose Combat Pursuer 150 | . . 30 . 120 Influence Decreases 96 | . 27 30 . 39 Time Decay 76 | . 27 20 . 29 Lost Part 20 | . . 10 . 10 Squads Dispatched 5 | . . . . 5 Investigation 3 | . . . . 3 Extermination . | . . . . . Reinforcement 1 | . . . . 1 Assault . | . . . . . Garrison 1 | . . . . 1 Intercept . | . . . . . Searches Triggered . | . . . . . Construction Impeded . | . . . . . Haulers Reinforced . | . . . . . Active Scanning Responses . | . . . . . Cargo Convoy Interrupts . | . . . . . Stealth | -11 -10 -10 -8 -8 --------- Run | Yrd Mat Sub Mat Sto Distress Signals 2 | . . . . 2 Communications Jammed . | . . . . . Distress Signals . | . . . . . Times Spotted 43 | . 4 13 . 26 Peak Tracking Total 22 | . 3 5 . 22 Tactical Retreats 6 | . . 5 . 1 Traps | -11 -10 -10 -8 -8 ------- Run | Yrd Mat Sub Mat Sto Traps Triggered 2 | . . . . 2 Indirectly . | . . . . . Trap Hack Attempts . | . . . . . Triggered . | . . . . . Disarmed . | . . . . . Reprogrammed . | . . . . . Reused . | . . . . . Traps Extracted . | . . . . . Installed . | . . . . . Triggered . | . . . . . Objects Rigged 3 | . . . . 3 Exploded 2 | . . . . 2 Machines | -11 -10 -10 -8 -8 ---------- Run | Yrd Mat Sub Mat Sto Machines Disabled 4 | . . . . 4 Max in Single Turn 2 | . . . . 2 Machines Repaired . | . . . . . Machines Dismantled . | . . . . . Machines Sabotaged . | . . . . . Overloaded Fab Kills . | . . . . . Hacking | -11 -10 -10 -8 -8 --------- Run | Yrd Mat Sub Mat Sto Machines Accessed 7 | . . 1 1 5 Terminals 5 | . . . 1 4 Fabricators . | . . . . . Repair Stations 1 | . . . . 1 Recycling Units . | . . . . . Scanalyzers . | . . . . . Garrison Access . | . . . . . Total Hacks 18 | . . 4 1 13 Successful 7 | . . 4 . 3 Failed 11 | . . . 1 10 Catastrophic 4 | . . . 1 3 Database Lockouts . | . . . . . Manual 9 | . . 1 1 7 Terminals 12 | . . . 1 11 Fabricators . | . . . . . Repair Stations 2 | . . . . 2 Recycling Units . | . . . . . Scanalyzers . | . . . . . Garrison Access . | . . . . . Terminal Hacks 6 | . . 4 . 2 Record 4 | . . 4 . . Open Door 1 | . . . . 1 Level Access Points 1 | . . . . 1 Fabricator Hacks . | . . . . . Repair Station Hacks . | . . . . . Recycling Unit Hacks . | . . . . . Scanalyzer . | . . . . . Garrison Access Hacks . | . . . . . Unauthorized Hacks 1 | . . . . 1 Terminals 1 | . . . . 1 Detonate 1 | . . . . 1 Fabricators . | . . . . . Repair Stations . | . . . . . Recycling Units . | . . . . . Scanalyzers . | . . . . . Garrison Access . | . . . . . Data Cores Recovered . | . . . . . Used . | . . . . . Hacking Detections 5 | . . . 1 4 Full Trace Events 3 | . . . . 3 Feedback Events . | . . . . . Feedback Blocked . | . . . . . Robot Schematics Acquired . | . . . . . Robots Built . | . . . . . Authchips . | . . . . . Time . | . . . . . Total Robot Build Rating . | . . . . . Part Schematics Acquired . | . . . . . Parts Built . | . . . . . Authchips . | . . . . . Time . | . . . . . Total Part Build Rating . | . . . . . Parts Repaired . | . . . . . Time . | . . . . . Parts Recycled . | . . . . . Recycled Matter . | . . . . . Retrieved Matter . | . . . . . Retrieved Components . | . . . . . Parts Scanalyzed . | . . . . . Part Schematics Acquired . | . . . . . Parts Damaged . | . . . . . Bothacking | -11 -10 -10 -8 -8 ------------ Run | Yrd Mat Sub Mat Sto Used RIF Installer . | . . . . . Robots Hacked . | . . . . . Non-combat . | . . . . . Combat . | . . . . . Robot Hacks Applied . | . . . . . Relay Couplers Released . | . . . . . Fabnet Peak Effective % . | . . . . . Robots Rewired . | . . . . . Allies Hacked . | . . . . . Hacks Repelled . | . . . . . Allies | -11 -10 -10 -8 -8 -------- Run | Yrd Mat Sub Mat Sto Total Allies . | . . . . . Largest Group . | . . . . . Highest-Rated Group . | . . . . . Highest-Rated Ally . | . . . . . Total Orders . | . . . . . Ally Attacks . | . . . . . Total Damage . | . . . . . Kills . | . . . . . Allies Corrupted . | . . . . . Allies Melted . | . . . . . Intel | -11 -10 -10 -8 -8 ------- Run | Yrd Mat Sub Mat Sto Active Infowar (turns) 166 | . 19 147 . . Optics 130 | . . 130 . . Structural 36 | . 19 17 . . Robot Analysis Total . | . . . . . Derelict Logs Recovered 3 | . . 3 . . Drone Launches . | . . . . . Drone Recoveries . | . . . . . Exploration | -11 -10 -10 -8 -8 ------------- Run | Yrd Mat Sub Mat Sto Turns Passed 598 | 61 102 336 9 90 Spaces Moved 1188 | 44 147 783 16 198 Core 94 | 1 . . . 93 Treads . | . . . . . Legs . | . . . . . Wheels 75 | 43 32 . . . Hover . | . . . . . Flight 1019 | . 115 783 16 105 Fastest Speed 37 | 50 37 37 37 37 Average Speed 41 | 89 48 37 37 43 Slowest Speed 100 | 100 90 37 37 50 Overloaded Moves . | . . . . . Propulsion Burnouts . | . . . . . Robots Hopped 4 | . 1 3 . . Potential Cave-ins . | . . . . . Cave-ins Triggered . | . . . . . Exploration Rate (%) 25 | 4 26 49 4 46 Regions Visited 4 Branch Regions 2 Pre-discovered Areas 3 | . . 3 . . Known Exits Taken . | . . . . . Unknown Exits Taken 4 | 1 1 1 1 . Scrap Searched 2 | . . 2 . . Spaces Dug . | . . . . . Terrain Destroyed 37 | . . . . 37 Melee . | . . . . . Projectile . | . . . . . AOE 37 | . . . . 37 Terrain Rammed . | . . . . . Walls Destroyed . | . . . . . Machines Disabled . | . . . . . Actions | -11 -10 -10 -8 -8 --------- Run | Yrd Mat Sub Mat Sto Total 1261 | 62 171 807 18 203 Wait 15 | 11 3 1 . . Move 1176 | 43 144 776 15 198 Hop 4 | . 1 3 . . Pick Up 12 | 2 5 4 . 1 Fast Attach 10 | 6 2 2 . . Attach 4 | . 1 2 1 . Detach 3 | . 3 . . . Swap 5 | . 3 1 1 . Drop 11 | . 5 4 1 1 Fire 18 | . 4 14 . . Melee . | . . . . . Ram 3 | . . . . 3 Kick . | . . . . . Crush . | . . . . . Escape Stasis . | . . . . . Rewire . | . . . . . Trap . | . . . . . Miscellaneous . | . . . . . Route ------- -11/Scrapyard -10/Materials (discovered 2 exits: [*Mat] / *Sub) -10/Subcaves -8/Materials -8/Storage (discovered 1 exit: Fac) History --------- Turn | Location | Event 9 | -11/Scrapyard | Discovered new exit (range 16) 62 | -11/Scrapyard | Entered Materials 63 | -10/Materials | Met a group of wandering Federalists 152 | -10/Materials | Discovered new exit (range 12) 161 | -10/Materials | Discovered new exit (range 10) 164 | -10/Materials | Entered Subcaves 165 | -10/Subcaves | Continued accompanying wandering Federalists (1) 167 | -10/Subcaves | Ambushed by Subdwellers from Twisted Machinery 219 | -10/Subcaves | Shifting Twisted Machinery released Slug Cannon 223 | -10/Subcaves | Shifting Twisted Machinery released Shrapnel Trap 296 | -10/Subcaves | A swath of the cavern ceiling suddenly collapsed 306 | -10/Subcaves | Learned location of Storage (-8) 309 | -10/Subcaves | Learned Materials terminal intel 338 | -10/Subcaves | Visited Clippyterm 339 | -10/Subcaves | Learned location of Extension (-6) 339 | -10/Subcaves | Learned Factory stockpile data 375 | -10/Subcaves | Learned location of Zion (-7) 459 | -10/Subcaves | Discovered new exit (range 10) 492 | -10/Subcaves | Core integrity fell below 50% 500 | -10/Subcaves | Entered Materials 500 | -8/Materials | Evolved 4 slots: Power x1, Propulsion x2, Utility x1 501 | -8/Materials | Loaded intel: 12 terminal locations 503 | -8/Materials | Discovered new exit (range 14) 509 | -8/Materials | Entered Storage 512 | -8/Storage | Identified exit to Factory 556 | -8/Storage | Allied Derelicts emerged from ambush trap array 558 | -8/Storage | Garrison activated, responded to threat 571 | -8/Storage | Core integrity fell below 50% 594 | -8/Storage | Lost 3 parts (2n1w) 595 | -8/Storage | Core integrity fell below 20% 598 | -8/Storage | Lost 3 allies 599 | -8/Storage | Destroyed by G-50 Soldier with Heavy Laser Last Messages --------------- ALERT: Activating Garrison Access S001. Connecting with Door Terminal... Critical hit (Burn: +37). G-47 Trooper destroyed. Med. Laser destroyed. CK-VK9(g) heat damages core (-16). CK-VK9(g) critical meltdown. Slammed into G-47 Trooper. G-47 Trooper destroyed. Slammed into G-47 Trooper. I8-EW1(g) destroyed. Slammed into A-02 Transporter. The unstable cave ceiling collapses. A-02 Transporter destroyed. K-01 Serf collects debris. Critical hit (Burn: +37). K-01 Serf collects debris. S-10 Pest suffers critical hit (Burn). S-10 Pest destroyed. K-01 Serf collects debris. Map ----- +----------------------------------------------------+ | ???????????????????????????????????????????? | | ???????????????????????????????????????????? | | ???????????????????????????????????????????? | | ?????????????????????????????????????######+ | | ?????????????????????????????????????# | | ?????????????????????????????????????# | | ?????????????????????????????????????# | | ?????????????????????????????????????######/ | | ????????????????????????????????????????? ? | | ????????????????????????????????????????"??? | | ???????????????????????????????????????????? | | ???????????????????????????????????????????? | | ???????????????????????????????????????????? | | ???????????????????????????????????????????? | | ???????????????????????????????????????????? | | ???????????????????????????????????????????? | | ???????????????????????????????????????????? | | ???????????????????????????????????????????? | | ???????????????????????????????????????????? | | ???????????????????????????????????????????? | | ???????????????????????????????????????????? | | ???????????????????????????????????????????? | | ???????????????#+#######################+### | | ???????????????# g g s | | ???????????????+ g % | | ???????????????# @ s [ ^Y w | | ???????????????###+#+#########/#########+### | | ?????????????????? ???????????????? ?? | | ???????????????? #?????????????? ?? | | ???????????????#= #????????????? "? | | ???????????????# // #????????????? "? | | ???????????????# // #???????????? | | ???????????????# / #???????????? "" | | ???????????????# #???????????# "" | | ???????????????# #???????????# "" | | ???????????????# ???????????# ? | | ???????????????##########???????????#######? | | ???????????????????????????????????????????? | | ???????????????????????????????????????????? | | ???????????????????????????????????????????? | | ???????????????????????????????????????????? | | ???????????????????????????????????????????? | | ???????????????????????????????????????????? | | | | | | | | | | | | | | | +----------------------------------------------------+ Best States ------------- Heat Dissipation 31 Energy Generation 15 Energy Capacity 250 Matter Stores 300 Matter Capacity 300 Sight Range 21 Terrain Scan Density 10 Evasion (%) 62 Item Schematics ----------------- None Robot Schematics ------------------ None Fabricated ------------ Nothing Repaired ---------- Nothing Alien Tech Used ----------------- None Achievements -------------- None Challenges ------------ None Game ------ Seed ElectronModifiedFlamer Manual? 0 Play Time 00:22:45 Cumulative 55.9 hours Start 2025.07.10 @ 19:53:34 End 2025.07.10 @ 20:15:14 Sessions 1 Manual Loads 0 Difficulty Rogue Special Mode None Game No. 46 Rogue 43 Adventurer 1 Explorer 2 Win Type - Total 0 Types 0/0/0/0/0/0/0/0/0/0 Lore% 20 Gallery% 35 Achievement% 28 Wizard Run 0 Options --------- Layout 0 ASCII 0 Keyboard 0 Movement Mouse Keybinds 0 Fullscreen 2 Font 24/Smallcaps Map View 76x50 Zoom Use 0% Tactical HUD 0 Map Filters NONE Filters NONE Steam 1 RUN: 10cd47b7-abab-4e6b-9da8-2da3448097e3